fUSD/lending_fUSD_20250506
["ID","MTS","AMOUNT","RATE_DAILY","PERIOD"]
[360045982,1746516632270,-250.0,0.00019699,2]
[360045983,1746516632279,-200.0,0.00019699,2]
[360045984,1746516632289,-200.0,0.000197,2]
[360045985,1746516632298,-150.48424008,0.00019744,2]
[360045986,1746516632308,-546.84828793,0.00019796,2]
[360045987,1746516632317,-546.84828793,0.00019797,2]
[360045988,1746516632326,-304.60127754,0.000198,2]
[360045989,1746516632336,-304.60127751,0.00019811,2]
[360045990,1746516632345,-304.60127751,0.00019822,2]
[360045991,1746516632354,-304.60127751,0.00019833,2]
[360045992,1746516632363,-304.60127751,0.00019844,2]
[360045993,1746516632373,-157.875047,0.00019852,2]
[360045994,1746516632382,-304.60127751,0.00019856,2]
[360045995,1746516632391,-304.60127751,0.00019867,2]
[360045996,1746516632400,-304.60127751,0.00019878,2]
[360045997,1746516632411,-1200.0,0.00019885,2]
[360045998,1746516632421,-619.29846783,0.00019886,2]
[360045999,1746516632430,-2500.0,0.00019886,2]
[360046000,1746516632439,-207.4,0.00019886,2]
[360046001,1746516632449,-300.0,0.00019887,2]
[360046002,1746516632458,-151.0,0.00019888,2]
[360046003,1746516632468,-151.0,0.00019888,2]
[360046004,1746516632477,-668.65185757,0.00019888,2]
[360046005,1746516632486,-304.60127751,0.00019889,2]
[360046006,1746516632495,-181.00939831,0.00019896,2]
[360046007,1746516632505,-6500.0,0.00019896,2]
[360046008,1746516632514,-8794.52323171,0.00019897,2]
[360046009,1746516632525,-1661.53110685,0.00019897,2]
[360046010,1746516632536,-2081.76129062,0.00019897,2]
[360046011,1746516632552,-87.13037082,0.00019897,2]
[360046012,1746516632562,-151.12835491,0.00019898,2]
[360046013,1746516632575,-425.61121924,0.00019898,2]
[360046014,1746516632591,-74.38878076,0.00019898,2]
[360046015,1746516632601,-638.41304645,0.00019898,2]
[360046491,1746516638258,-335.66899799,0.00019898,2]
[360046492,1746516638280,-431.44795556,0.00019898,2]
[360046493,1746516638289,-3184.56832744,0.00019898,2]
[360046494,1746516638517,-1688.39167256,0.00019898,2]
[360046495,1746516638527,-924.18098354,0.00019898,2]
[360046496,1746516638683,-466.72901646,0.00019898,2]
[360046497,1746516638692,-389.69,0.00019898,2]
[360046498,1746516638702,-3248.30161758,0.00019898,2]
[360046499,1746516638714,-6204.9454471,0.00019898,2]
[360046501,1746516640594,-272.00293532,0.00019898,2]
[360046502,1746516640604,-150.99,0.00019898,2]
[360046503,1746516640614,-999.99,0.00019898,2]
[360046504,1746516640624,-151.12835486,0.00019898,2]
[360046505,1746516640634,-151.12835486,0.00019899,2]
[360046506,1746516640643,-151.12835486,0.00019899,2]
[360046507,1746516640654,-5000.0,0.00019899,2]
[360046508,1746516640665,-367.26618081,0.00019899,2]
[360046509,1746516640674,-500.0,0.00019899,2]
[360046510,1746516640683,-500.0,0.00019899,2]
[360046511,1746516640692,-500.0,0.00019899,2]
[360046512,1746516640702,-500.0,0.00019899,2]
[360046513,1746516640712,-500.0,0.00019899,2]
[360046514,1746516640721,-500.0,0.00019899,2]
[360046515,1746516640730,-500.0,0.00019899,2]
[360046516,1746516640739,-500.0,0.00019899,2]
[360046517,1746516640748,-500.0,0.00019899,2]
[360046518,1746516640757,-500.0,0.00019899,2]
[360046519,1746516640767,-500.0,0.00019899,2]
[360046520,1746516640775,-500.0,0.00019899,2]
[360046521,1746516640785,-500.0,0.00019899,2]
[360046522,1746516640794,-375.75996803,0.00019899,2]
[360046523,1746516640803,-500.0,0.00019899,2]
[360046524,1746516640812,-500.0,0.00019899,2]
[360046525,1746516640821,-500.0,0.00019899,2]
[360046526,1746516640830,-500.0,0.00019899,2]
[360046527,1746516640839,-500.0,0.00019899,2]
[360046528,1746516640848,-500.0,0.00019899,2]
[360046529,1746516640857,-500.0,0.00019899,2]
[360046530,1746516640866,-500.0,0.00019899,2]
[360046531,1746516640877,-500.0,0.00019899,2]
[360046532,1746516640886,-500.0,0.00019899,2]
[360046533,1746516640895,-500.0,0.00019899,2]
[360046534,1746516640904,-500.0,0.00019899,2]
[360046535,1746516640914,-500.0,0.00019899,2]
[360046536,1746516640923,-500.0,0.00019899,2]
[360046537,1746516640932,-500.0,0.00019899,2]
[360046538,1746516640941,-500.0,0.00019899,2]
[360046539,1746516640951,-500.0,0.00019899,2]
[360046540,1746516640960,-598.27461459,0.00019899,2]
[360046541,1746516640969,-151.12835486,0.00019899,2]
[360046542,1746516640978,-151.12835486,0.00019899,2]
[360046543,1746516640987,-367.2661808,0.000199,2]
[360046544,1746516640996,-151.12835486,0.000199,2]
[360046545,1746516641006,-228.122871,0.000199,2]
[360046546,1746516641015,-75275.36897604,0.000199,2]
[360046547,1746516641025,-304.60127751,0.000199,2]
[360046548,1746516641034,-367.2661808,0.000199,2]
[360046549,1746516641043,-20482.62013953,0.000199,2]
[360046550,1746516641052,-151.12835486,0.000199,2]
[360046551,1746516641061,-173.61940952,0.000199,2]
[360046552,1746516641071,-255.1746117,0.000199,2]
[360046553,1746516641080,-150.0,0.00019918,7]
[360046554,1746516641089,-203.0,0.00019973,2]
[360046555,1746516641100,-500.0,0.00019973,2]
[360046556,1746516641109,-504.22180496,0.00019973,2]
[360046557,1746516641118,-200.02654854,0.00019973,2]
[360046558,1746516641128,-1674.05515249,0.00019985,2]
[360046559,1746516641137,-44526.0436902,0.00019986,2]
[360046560,1746516641146,-4454.1871061,0.00019986,2]
[360046561,1746516641155,-1074.7883712,0.00019986,2]
[360046562,1746516641164,-442.04,0.00019987,2]
[360046563,1746516641173,-1612.922,0.00019996,2]
[360046564,1746516641183,-182.7209885,0.00019996,2]
[360046565,1746516641193,-400.0,0.00019996,2]
[360046566,1746516641202,-450.0,0.00019996,2]
[360046567,1746516641211,-450.0,0.00019996,2]
[360046569,1746516641220,-450.0,0.00019996,2]
[360046571,1746516641230,-450.0,0.00019996,2]
[360046572,1746516641239,-450.0,0.00019996,2]
[360046573,1746516641248,-450.18383231,0.00019996,2]
[360046574,1746516641257,-450.0,0.00019996,2]
[360046575,1746516641266,-450.0,0.00019996,2]
[360046576,1746516641276,-450.0,0.00019996,2]
[360046577,1746516641285,-450.0,0.00019996,2]
[360046578,1746516641295,-450.0,0.00019997,2]
[360046579,1746516641304,-450.0,0.00019997,2]
[360046580,1746516641313,-450.0,0.00019997,2]
[360046581,1746516641322,-450.0,0.00019997,2]
[360046582,1746516641331,-404.55328028,0.00019997,2]
[360046583,1746516641341,-360.21539428,0.00019997,2]
[360046584,1746516641350,-450.0,0.00019997,2]
[360046585,1746516641359,-450.0,0.00019997,2]
[360046586,1746516641369,-346.79491599,0.00019997,2]
[360046587,1746516641378,-500.0,0.00019997,2]
[360046588,1746516641387,-450.0,0.00019997,2]
[360046589,1746516641396,-1165.35,0.00019997,2]
[360046590,1746516641406,-450.0,0.00019997,2]
[360046591,1746516641416,-450.0,0.00019997,2]
[360046592,1746516641425,-450.0,0.00019997,2]
[360046593,1746516641433,-450.0,0.00019997,2]
[360046594,1746516641442,-450.0,0.00019997,2]
[360046595,1746516641451,-450.0,0.00019997,2]
[360046596,1746516641460,-154.74785113,0.00019997,2]
[360046597,1746516641469,-450.0,0.00019997,2]
[360046598,1746516641477,-519.76,0.00019997,2]
[360046599,1746516641486,-450.0,0.00019997,2]
[360046600,1746516641495,-7549.09,0.00019997,2]
[360046601,1746516641504,-500.0,0.00019997,2]
[360046602,1746516641513,-450.0,0.00019997,2]
[360046603,1746516641522,-450.0,0.00019997,2]
[360046604,1746516641531,-246.96321116,0.00019997,2]
[360046605,1746516641540,-450.0,0.00019997,2]
[360046606,1746516641549,-450.0,0.00019997,2]
[360046607,1746516641558,-450.0,0.00019997,2]
[360046608,1746516641567,-356.22829565,0.00019997,2]
[360046609,1746516641579,-450.0,0.00019997,2]
[360046610,1746516641588,-450.0,0.00019997,2]
[360046611,1746516641598,-450.0,0.00019997,2]
[360046612,1746516641607,-450.0,0.00019997,2]
[360046613,1746516641616,-450.0,0.00019997,2]
[360046614,1746516641627,-450.0,0.00019997,2]
[360046615,1746516641636,-450.0,0.00019997,2]
[360046616,1746516641645,-450.0,0.00019997,2]
[360046617,1746516641654,-450.0,0.00019997,2]
[360046618,1746516641664,-450.0,0.00019997,2]
[360046619,1746516641673,-450.0,0.00019997,2]
[360046620,1746516641682,-450.0,0.00019997,2]
[360046621,1746516641692,-450.0,0.00019997,2]
[360046622,1746516641701,-450.0,0.00019997,2]
[360046623,1746516641710,-500.0,0.00019997,2]
[360046624,1746516641719,-450.0,0.00019997,2]
[360046625,1746516641728,-450.0,0.00019997,2]
[360046626,1746516641738,-450.0,0.00019997,2]
[360046627,1746516641748,-450.0,0.00019997,2]
[360046628,1746516641758,-450.0,0.00019997,2]
[360046629,1746516641767,-450.0,0.00019997,2]
[360046630,1746516641777,-450.0,0.00019997,2]
[360046631,1746516641786,-450.0,0.00019997,2]
[360046632,1746516641795,-450.0,0.00019997,2]
[360046633,1746516641805,-450.0,0.00019997,2]
[360046634,1746516641814,-450.0,0.00019997,2]
[360046635,1746516641823,-450.0,0.00019997,2]
[360046636,1746516641832,-450.0,0.00019997,2]
[360046637,1746516641842,-450.0,0.00019997,2]
[360046638,1746516641851,-450.0,0.00019997,2]
[360046639,1746516641860,-446.44784332,0.00019997,2]
[360046640,1746516641869,-450.000001,0.00019997,2]
[360046641,1746516641879,-450.0,0.00019997,2]
[360046642,1746516641888,-450.0,0.00019997,2]
[360046643,1746516641897,-450.0,0.00019997,2]
[360046644,1746516641906,-450.0,0.00019997,2]
[360046645,1746516641916,-2557.75,0.00019997,2]
[360046646,1746516641925,-822.49,0.00019997,2]
[360046647,1746516641934,-450.0,0.00019997,2]
[360046648,1746516641943,-450.0,0.00019997,2]
[360046649,1746516641952,-450.0,0.00019998,2]
[360046650,1746516641960,-500.0,0.00019998,2]
[360046651,1746516641970,-165.86935305,0.00019998,2]
[360046652,1746516641979,-318.59211762,0.00019998,2]
[360046653,1746516641989,-206.43280367,0.00019998,2]
[360046654,1746516641998,-348.85670094,0.00019998,2]
[360046655,1746516642007,-161.31420626,0.00019998,2]
[360046656,1746516642016,-500.0,0.00019998,2]
[360046657,1746516642025,-500.0,0.00019998,2]
[360046658,1746516642034,-500.0,0.00019998,2]
[360046659,1746516642044,-500.0,0.00019998,2]
[360046660,1746516642053,-452.01028082,0.00019998,2]
[360046661,1746516642062,-150.0,0.00019998,2]
[360046662,1746516642072,-441.10669186,0.00019998,2]
[360046663,1746516642081,-549.95818338,0.00019998,2]
[360046664,1746516642090,-452.99492293,0.00019998,2]
[360046665,1746516642100,-450.0,0.00019998,2]
[360046666,1746516642109,-453.30338961,0.00019998,2]
[360046667,1746516642118,-409.67968258,0.00019998,2]
[360046668,1746516642127,-305.65399274,0.00019998,2]
[360046669,1746516642136,-494.18306885,0.00019998,2]
[360046670,1746516642145,-452.80169343,0.00019998,2]
[360046671,1746516642154,-450.0,0.00019998,2]
[360046672,1746516642165,-450.0,0.00019998,2]
[360046673,1746516642174,-450.0,0.00019998,2]
[360046674,1746516642184,-450.0,0.00019998,2]
[360046675,1746516642193,-450.0,0.00019998,2]
[360046676,1746516642202,-450.0,0.00019998,2]
[360046677,1746516642212,-500.0,0.00019998,2]
[360046678,1746516642221,-450.0,0.00019998,2]
[360046679,1746516642231,-497.2135963,0.00019998,2]
[360046680,1746516642241,-450.0,0.00019998,2]
[360046681,1746516642251,-450.0,0.00019998,2]
[360046682,1746516642261,-484.84933212,0.00019998,2]
[360046683,1746516642270,-450.0,0.00019998,2]
[360046684,1746516642280,-450.0,0.00019998,2]
[360046685,1746516642290,-503.64430949,0.00019998,2]
[360046686,1746516642300,-450.0,0.00019998,2]
[360046687,1746516642310,-450.0,0.00019998,2]
[360046688,1746516642320,-450.0,0.00019998,2]
[360046689,1746516642330,-450.0,0.00019998,2]
[360046690,1746516642339,-450.0,0.00019998,2]
[360046691,1746516642349,-450.0,0.00019998,2]
[360046692,1746516642358,-450.0,0.00019998,2]
[360046693,1746516642368,-450.0,0.00019998,2]
[360046694,1746516642378,-450.0,0.00019998,2]
[360046695,1746516642387,-450.0,0.00019998,2]
[360046696,1746516642397,-450.0,0.00019998,2]
[360046697,1746516642407,-450.0,0.00019998,2]
[360046698,1746516642418,-450.0,0.00019998,2]
[360046699,1746516642428,-450.0,0.00019998,2]
[360046700,1746516642437,-311.7,0.00019998,2]
[360046701,1746516642447,-450.9,0.00019998,2]
[360046702,1746516642456,-450.0,0.00019998,2]
[360046703,1746516642466,-450.0,0.00019998,2]
[360046704,1746516642476,-450.0,0.00019998,2]
[360046705,1746516642486,-450.0,0.00019998,2]
[360046706,1746516642495,-450.0,0.00019998,2]
[360046707,1746516642504,-534.1,0.00019998,2]
[360046708,1746516642514,-450.0,0.00019998,2]
[360046709,1746516642523,-450.0,0.00019998,2]
[360046710,1746516642533,-187.25,0.00019998,2]
[360046711,1746516642542,-450.0,0.00019998,2]
[360046712,1746516642552,-450.0,0.00019998,2]
[360046713,1746516642561,-450.0,0.00019998,2]
[360046714,1746516642576,-450.0,0.00019998,2]
[360046715,1746516642586,-450.0,0.00019998,2]
[360046716,1746516642595,-450.0,0.00019998,2]
[360046717,1746516642605,-450.0,0.00019998,2]
[360046718,1746516642615,-450.0,0.00019998,2]
[360046719,1746516642625,-522.29329378,0.00019998,2]
[360046720,1746516642634,-450.0,0.00019998,2]
[360046721,1746516642643,-540.11,0.00019998,2]
[360046722,1746516642654,-450.0,0.00019998,2]
[360046723,1746516642663,-450.0,0.00019998,2]
[360046724,1746516642673,-450.0,0.00019998,2]
[360046725,1746516642682,-450.0,0.00019998,2]
[360046726,1746516642691,-450.0,0.00019998,2]
[360046727,1746516642700,-450.0,0.00019998,2]
[360046728,1746516642710,-450.0,0.00019998,2]
[360046729,1746516642719,-450.0,0.00019998,2]
[360046730,1746516642729,-1165.35,0.00019998,2]
[360046731,1746516642739,-1165.35,0.00019998,2]
[360046732,1746516642748,-450.0,0.00019998,2]
[360046733,1746516642757,-450.0,0.00019998,2]
[360046734,1746516642767,-450.0,0.00019998,2]
[360046735,1746516642776,-539.82013308,0.00019998,2]
[360046736,1746516642785,-450.0,0.00019998,2]
[360046737,1746516642795,-450.0,0.00019998,2]
[360046738,1746516642804,-407.50164798,0.00019998,2]
[360046739,1746516642814,-251.28,0.00019998,2]
[360046740,1746516642824,-450.0,0.00019998,2]
[360046741,1746516642833,-450.0,0.00019998,2]
[360046742,1746516642843,-450.0,0.00019998,2]
[360046743,1746516642853,-450.0,0.00019998,2]
[360046744,1746516642863,-450.0,0.00019998,2]
[360046745,1746516642872,-450.0,0.00019998,2]
[360046746,1746516642882,-450.0,0.00019998,2]
[360046747,1746516642891,-450.0,0.00019998,2]
[360046748,1746516642902,-188.58,0.00019998,2]
[360046749,1746516642912,-450.0,0.00019998,2]
[360046750,1746516642923,-508.48125842,0.00019998,2]
[360046751,1746516642934,-450.0,0.00019998,2]
[360046752,1746516642943,-450.0,0.00019998,2]
[360046753,1746516642952,-450.0,0.00019998,2]
[360046754,1746516642962,-450.0,0.00019998,2]
[360046755,1746516642971,-450.0,0.00019998,2]
[360046756,1746516642981,-450.0,0.00019998,2]
[360046757,1746516642990,-1546.89,0.00019998,2]
[360046758,1746516643000,-450.0,0.00019998,2]
[360046759,1746516643009,-450.0,0.00019998,2]
[360046760,1746516643019,-569.32,0.00019998,2]
[360046761,1746516643029,-450.0,0.00019998,2]
[360046762,1746516643038,-450.0,0.00019998,2]
[360046763,1746516643047,-450.0,0.00019998,2]
[360046764,1746516643057,-586.08,0.00019998,2]
[360046765,1746516643067,-450.0,0.00019998,2]
[360046766,1746516643077,-450.0,0.00019998,2]
[360046767,1746516643086,-450.0,0.00019998,2]
[360046768,1746516643095,-325.89008284,0.00019998,2]
[360046769,1746516643105,-450.0,0.00019998,2]
[360046770,1746516643115,-450.0,0.00019998,2]
[360046771,1746516643124,-450.0,0.00019998,2]
[360046776,1746516643268,-507.99,0.00019998,2]
[360046778,1746516643278,-450.0,0.00019998,2]
[360046779,1746516643288,-450.0,0.00019998,2]
[360046780,1746516643297,-450.0,0.00019998,2]
[360046781,1746516643306,-450.0,0.00019998,2]
[360046782,1746516643316,-450.0,0.00019998,2]
[360046783,1746516643326,-450.0,0.00019998,2]
[360046784,1746516643335,-450.0,0.00019998,2]
[360046785,1746516643345,-471.40338272,0.00019998,2]
[360046786,1746516643354,-157.875047,0.00019998,2]
[360046787,1746516643364,-180.21859397,0.00019998,2]
[360046788,1746516643374,-245.01919077,0.00019998,2]
[360046789,1746516643383,-450.0,0.00019998,2]
[360046790,1746516643392,-450.0,0.00019998,2]
[360046791,1746516643401,-427.55567073,0.00019998,2]
[360046792,1746516643411,-450.0,0.00019998,2]
[360046793,1746516643422,-500.0,0.00019998,2]
[360046794,1746516643432,-450.0,0.00019998,2]
[360046795,1746516643441,-450.0,0.00019998,2]
[360046796,1746516643451,-450.0,0.00019998,2]
[360046797,1746516643461,-450.0,0.00019998,2]
[360046798,1746516643471,-450.0,0.00019998,2]
[360046799,1746516643481,-7549.09,0.00019998,2]
[360046800,1746516643490,-450.0,0.00019998,2]
[360046801,1746516643500,-450.0,0.00019998,2]
[360046802,1746516643510,-450.0,0.00019998,2]
[360046803,1746516643519,-450.0,0.00019998,2]
[360046804,1746516643529,-357.16,0.00019998,2]
[360046805,1746516643538,-450.0,0.00019998,2]
[360046806,1746516643547,-450.0,0.00019998,2]
[360046807,1746516643556,-569.50365886,0.00019998,2]
[360046808,1746516643565,-450.0,0.00019998,2]
[360046809,1746516643577,-450.0,0.00019998,2]
[360046810,1746516643586,-450.0,0.00019998,2]
[360046811,1746516643595,-450.0,0.00019998,2]
[360046812,1746516643605,-461.0000001,0.00019998,2]
[360046813,1746516643614,-489.96195882,0.00019998,2]
[360046814,1746516643623,-450.0,0.00019998,2]
[360046815,1746516643633,-450.0,0.00019998,2]
[360046816,1746516643643,-450.0,0.00019998,2]
[360046817,1746516643652,-450.0,0.00019998,2]
[360046818,1746516643662,-450.0,0.00019998,2]
[360046819,1746516643671,-450.0,0.00019998,2]
[360046820,1746516643681,-450.0,0.00019998,2]
[360046821,1746516643690,-450.0,0.00019998,2]
[360046822,1746516643700,-312.82090501,0.00019998,2]
[360046823,1746516643709,-450.0,0.00019998,2]
[360046824,1746516643718,-450.0,0.00019998,2]
[360046825,1746516643727,-349.52253887,0.00019998,2]
[360046826,1746516643737,-450.0,0.00019998,2]
[360046827,1746516643746,-450.0,0.00019998,2]
[360046828,1746516643755,-506.73225743,0.00019998,2]
[360046829,1746516643765,-450.0,0.00019998,2]
[360046831,1746516643775,-450.0,0.00019998,2]
[360046834,1746516643784,-450.0,0.00019998,2]
[360046836,1746516643793,-450.0,0.00019998,2]
[360046838,1746516643803,-450.0,0.00019998,2]
[360046841,1746516643812,-450.0,0.00019998,2]
[360046843,1746516643821,-450.0,0.00019998,2]
[360046844,1746516643830,-450.0,0.00019998,2]
[360046846,1746516643839,-450.0,0.00019998,2]
[360046847,1746516643848,-374.22485706,0.00019998,2]
[360046848,1746516643857,-432.28836219,0.00019998,2]
[360046849,1746516643867,-450.0,0.00019998,2]
[360046850,1746516643876,-450.0,0.00019998,2]
[360046852,1746516643885,-450.0,0.00019998,2]
[360046853,1746516643894,-515.24663202,0.00019998,2]
[360046855,1746516643904,-450.59,0.00019998,2]
[360046857,1746516643913,-450.0,0.00019998,2]
[360046859,1746516643922,-450.0,0.00019998,2]
[360046861,1746516643931,-487.14,0.00019998,2]
[360046863,1746516643941,-450.0,0.00019998,2]
[360046865,1746516643951,-450.0,0.00019998,2]
[360046866,1746516643960,-204.5,0.00019998,2]
[360046867,1746516643969,-450.0,0.00019998,2]
[360046868,1746516643979,-450.0,0.00019998,2]
[360046869,1746516643988,-450.0,0.00019998,2]
[360046870,1746516643997,-450.0,0.00019998,2]
[360046871,1746516644006,-528.86085073,0.00019998,2]
[360046872,1746516644015,-450.0,0.00019998,2]
[360046873,1746516644024,-450.0,0.00019998,2]
[360046874,1746516644033,-450.0,0.00019998,2]
[360046875,1746516644042,-450.0,0.00019998,2]
[360046876,1746516644052,-450.0,0.00019998,2]
[360046877,1746516644061,-450.0,0.00019998,2]
[360046878,1746516644070,-450.0,0.00019998,2]
[360046879,1746516644079,-450.0,0.00019998,2]
[360046880,1746516644088,-450.0,0.00019998,2]
[360046881,1746516644097,-450.0,0.00019998,2]
[360046882,1746516644107,-450.0,0.00019998,2]
[360046883,1746516644116,-450.0,0.00019998,2]
[360046884,1746516644125,-450.0,0.00019998,2]
[360046885,1746516644134,-2557.75,0.00019998,2]
[360046886,1746516644144,-450.0,0.00019998,2]
[360046887,1746516644153,-822.49,0.00019998,2]
[360046888,1746516644162,-450.0,0.00019998,2]
[360046889,1746516644172,-822.49,0.00019998,2]
[360046890,1746516644181,-450.0,0.00019998,2]
[360046891,1746516644190,-450.0,0.00019998,2]
[360046892,1746516644199,-669.89624627,0.00019999,2]
[360046893,1746516644208,-300.0,0.00019999,2]
[360046894,1746516644217,-300.0,0.00019999,2]
[360046895,1746516644227,-151.0,0.00019999,2]
[360046896,1746516644236,-151.0,0.00019999,2]
[360046897,1746516644246,-202.631679,0.00019999,2]
[360046898,1746516644255,-202.631679,0.00019999,2]
[360046899,1746516644264,-151.0,0.00019999,2]
[360046900,1746516644274,-151.0,0.00019999,2]
[360046901,1746516644283,-151.0,0.00019999,2]
[360046902,1746516644292,-151.0,0.00019999,2]
[360046903,1746516644301,-151.0,0.00019999,2]
[360046904,1746516644310,-200.0,0.00019999,2]
[360046905,1746516644320,-450.0,0.00019999,2]
[360046906,1746516644329,-450.0,0.00019999,2]
[360046907,1746516644338,-450.0,0.00019999,2]
[360046908,1746516644347,-450.0,0.00019999,2]
[360046909,1746516644356,-450.0,0.00019999,2]
[360046910,1746516644366,-450.0,0.00019999,2]
[360046911,1746516644375,-450.0,0.00019999,2]
[360046912,1746516644384,-450.0,0.00019999,2]
[360046913,1746516644394,-450.0,0.00019999,2]
[360046914,1746516644403,-450.0,0.00019999,2]
[360046915,1746516644412,-450.0,0.00019999,2]
[360046916,1746516644422,-534.81,0.00019999,2]
[360046917,1746516644431,-450.0,0.00019999,2]
[360046918,1746516644440,-450.0,0.00019999,2]
[360046919,1746516644450,-317.61538247,0.00019999,2]
[360046920,1746516644459,-450.0,0.00019999,2]
[360046921,1746516644468,-2489.41177349,0.00019999,2]
[360046922,1746516644478,-450.0,0.00019999,2]
[360046923,1746516644487,-380.59086615,0.00019999,2]
[360046924,1746516644496,-227.35929979,0.00019999,2]
[360046925,1746516644505,-450.0,0.00019999,2]
[360046926,1746516644515,-460.42587133,0.00019999,2]
[360046927,1746516644524,-259.09643932,0.00019999,2]
[360046928,1746516644533,-450.0,0.00019999,2]
[360046929,1746516644543,-450.0,0.00019999,2]
[360046930,1746516644551,-450.0,0.00019999,2]
[360046931,1746516644560,-450.0,0.00019999,2]
[360046932,1746516644573,-450.0,0.00019999,2]
[360046933,1746516644582,-450.0,0.00019999,2]
[360046934,1746516644592,-450.0,0.00019999,2]
[360046935,1746516644601,-450.0,0.00019999,2]
[360046936,1746516644611,-418.39878309,0.00019999,2]
[360046937,1746516644621,-574.68303573,0.00019999,2]
[360046938,1746516644630,-150.0,0.00019999,2]
[360046939,1746516644639,-150.0,0.00019999,2]
[360046940,1746516644651,-500.0,0.00019999,2]
[360046941,1746516644660,-500.0,0.00019999,2]
[360046942,1746516644673,-152.04642897,0.00019999,2]
[360046943,1746516644683,-500.0,0.00019999,2]
[360046944,1746516644692,-150.0,0.00019999,2]
[360046945,1746516644702,-445.90349874,0.00019999,2]
[360046946,1746516644711,-450.0,0.00019999,2]
[360046947,1746516644720,-450.0,0.00019999,2]
[360046948,1746516644730,-450.0,0.00019999,2]
[360046949,1746516644740,-450.0,0.00019999,2]
[360046950,1746516644749,-450.0,0.00019999,2]
[360046951,1746516644759,-1165.35,0.00019999,2]
[360046952,1746516644769,-450.0,0.00019999,2]
[360046953,1746516644778,-1165.35,0.00019999,2]
[360046954,1746516644788,-1165.35,0.00019999,2]
[360046955,1746516644797,-450.0,0.00019999,2]
[360046956,1746516644807,-1165.35,0.00019999,2]
[360046957,1746516644817,-450.0,0.00019999,2]
[360046958,1746516644826,-1165.35,0.00019999,2]
[360046959,1746516644835,-450.0,0.00019999,2]
[360046960,1746516644845,-1165.35,0.00019999,2]
[360046961,1746516644855,-450.0,0.00019999,2]
[360046962,1746516644865,-1165.35,0.00019999,2]
[360046963,1746516644874,-450.0,0.00019999,2]
[360046964,1746516644883,-1165.35,0.00019999,2]
[360046965,1746516644892,-1165.35,0.00019999,2]
[360046966,1746516644901,-1165.35,0.00019999,2]
[360046967,1746516644911,-450.0,0.00019999,2]
[360046968,1746516644927,-1165.35,0.00019999,2]
[360046969,1746516644936,-450.0,0.00019999,2]
[360046970,1746516644946,-1165.35,0.00019999,2]
[360046971,1746516644955,-344.93,0.00019999,2]
[360046972,1746516644965,-1165.35,0.00019999,2]
[360046973,1746516644974,-1165.35,0.00019999,2]
[360046974,1746516644983,-1165.35,0.00019999,2]
[360046975,1746516644993,-1165.35,0.00019999,2]
[360046976,1746516645002,-1165.35,0.00019999,2]
[360046977,1746516645012,-1165.35,0.00019999,2]
[360046978,1746516645021,-1165.35,0.00019999,2]
[360046979,1746516645031,-1165.35,0.00019999,2]
[360046980,1746516645041,-1165.40112667,0.00019999,2]